Workbook

Sheet Cálculo
A1: Verificação dos Esforços Resistentes de Perfis W
A2: Nc,Rd= | B2: =IF(MAX(H2,H4,H6)>=200,"Peça Esbelta",Compressão!B30) -> 311.2534272 | C2: kN | D2: Lx= | E2: 3000 | F2: mm | G2: lx= | H2: =(Lx*Kx)/(rx*10) -> 28.54424358
A3: Mmáx= | C3: m.kN | D3: Kx= | E3: 1
A4: Vmáx= | C4: kN | D4: Ly= | E4: 3000 | F4: mm | G4: ly= | H4: =(Ly*Ky)/(ry*10) -> 136.3636364
D5: Ky= | E5: 1
A6: Perfil: | B6: 23 | D6: Lz= | E6: 3000 | F6: mm | G6: lx= | H6: =(Lz*Kz)/(r0*10) -> 114.5038168
A7: Aço: | B7: 2 | D7: Kz= | E7: 1
A8: fy= | B8: =IF(B7=1,fy!B2,IF(B7=2,fy!B3,fy!B4)) -> 345 | C8: MPa | D8: E= | E8: 200000 | F8: MPa
A9: fu= | B9: =IF(B7=1,fy!C2,IF(B7=2,fy!C3,fy!C4)) -> 450 | C9: MPa | D9: G= | E9: 77000 | F9: MPa
A10: d= | B10: 260 | C10: mm | D10: ga1= | E10: 1.1 | F10: (Combinações Normais)
A11: bf= | B11: 102 | C11: mm
A12: tw= | B12: 6,4 | C12: mm
A13: tf= | B13: 10 | C13: mm
A14: d'= | B14: 220 | C14: mm
A15: A= | B15: 36,6 | C15: cm²
A16: Ix= | B16: 4046 | C16: cm4
A17: Iy= | B17: 178 | C17: cm4
A18: J= | B18: 10,34 | C18: cm4
A19: r0= | B19: 2,62 | C19: cm
A20: Cw= | B20: 27636 | C20: cm6
A21: rx= | B21: 10,51 | C21: cm
A22: ry= | B22: 2,2 | C22: cm

Sheet Compressão
A1: Cálculo da Força resistente de compressão de perfis W laminados
A3: Esbeltez da Alma (AA)
A4: b/t= | B4: =d_linha/tw -> 34.375
A5: b/t lim= | B5: =1.49*SQRT(E/fy) -> 35.87498422 | C5: =IF(B4<B5,"Qa=1","Alma esbelta: Qa<1") -> Qa=1
A6: bef= | B6: =MIN(1.92*tw*SQRT(E/fy)*(1-0.34/B4*SQRT(E/fy)),d_linha) -> 220 | C6: mm
A7: Aef= | B7: =A-(d_linha-bef)*tw/100 -> 36.6 | C7: cm²
A8: Qa= | B8: =IF(B4<B5,1,Aef/A) -> 1
A10: Esbeltez da Mesa (AL)
A11: b/t= | B11: =(bf/2)/tf -> 5.1
A12: b/t lim= | B12: =0.56*SQRT(E/fy) -> 13.48321555
A13: Qs= | B13: =IF(B11<B12,1,"Qs<1") -> 1
A15: Fator de redução flambagem local
A16: Q= | B16: =B8*B13 -> 1
A18: Forças Axiais Elásticas
A19: Nex= | B19: =(PI())^2*E*Ix/(Kx*Lx)^2*10 -> 8873.870979 | C19: kN
A20: Ney= | B20: =(PI())^2*E*Iy/(Ky*Ly)^2*10 -> 390.3976852 | C20: kN
A21: Nez= | B21: =((PI())^2*E*Cw/(Kz*Lz)^2*1000+G*J*10)/(r0*10)^2 -> 20428.66536 | C21: kN
A23: Esbeltez reduzida
A24: l0= | B24: =SQRT(Q*A*100*fy/(MIN(B19:B21)*1000)) -> 1.798442153
A26: Fator de Redução
A27: c= | B27: =IF(B24<=1.5,0.658^(B24^2),0.877/(B24^2)) -> 0.2711481507
A29: Força Axial Resistente de Cálculo
A30: Nc,Rd | B30: =B27*Q*A*100*fy/gama_a1/1000 -> 311.2534272 | C30: kN

Sheet Perfis
A1: BITOLA | B1: Massa Linear | C1: d | D1: bf | E1: Espessura | G1: h | H1: d' | I1: Área | J1: Eixo X - X | N1: Eixo Y - Y | R1: r t | S1: I t | T1: Esbeltez | V1: Cw | W1: u | X1: BITOLA
E2: tw | F2: tf | J2: Ix | K2: Wx | L2: rx | M2: Zx | N2: Iy | O2: Wy | P2: ry | Q2: Zy | T2: Aba | U2: Alma
A3: mm x kg/m | B3: Kg/m | C3: mm | D3: mm | E3: mm | F3: mm | G3: mm | H3: mm | I3: cm2 | J3: cm4 | K3: cm3 | L3: cm | M3: cm3 | N3: cm4 | O3: cm3 | P3: cm | Q3: cm3 | R3: cm | S3: cm4 | T3: bf / 2tf | U3: d' / tw | V3: cm6 | W3: m2/m | X3: mm x kg/m
A4: W 150 x 13,0 | B4: 13 | C4: 148 | D4: 100 | E4: 4,3 | F4: 4,9 | G4: 138 | H4: 118 | I4: 16,6 | J4: 635 | K4: 85,8 | L4: 6,18 | M4: 96,4 | N4: 82 | O4: 16,4 | P4: 2,22 | Q4: 25,5 | R4: 2,6 | S4: 1,72 | T4: 10,2 | U4: 27,49 | V4: 4181 | W4: 0,67 | X4: W 150 x 13,0 | Y4: =D4/2/F4 -> 10.20408163
A5: W 150 x 18,0 | B5: 18 | C5: 153 | D5: 102 | E5: 5,8 | F5: 7,1 | G5: 139 | H5: 119 | I5: 23,4 | J5: 939 | K5: 122,8 | L5: 6,34 | M5: 139,4 | N5: 126 | O5: 24,7 | P5: 2,32 | Q5: 38,5 | R5: 2,69 | S5: 4,34 | T5: 7,18 | U5: 20,48 | V5: 6683 | W5: 0,69 | X5: W 150 x 18,0 | Y5: =D5/2/F5 -> 7.183098592
A6: W 150 x 22,5 (H) | B6: 22,5 | C6: 152 | D6: 152 | E6: 5,8 | F6: 6,6 | G6: 139 | H6: 119 | I6: 29 | J6: 1229 | K6: 161,7 | L6: 6,51 | M6: 179,6 | N6: 387 | O6: 50,9 | P6: 3,65 | Q6: 77,9 | R6: 4,1 | S6: 4,75 | T6: 11,52 | U6: 20,48 | V6: 20417 | W6: 0,88 | X6: W 150 x 22,5 (H) | Y6: 11.51515152
A7: W 150 x 24,0 | B7: 24 | C7: 160 | D7: 102 | E7: 6,6 | F7: 10,3 | G7: 139 | H7: 115 | I7: 31,5 | J7: 1384 | K7: 173 | L7: 6,63 | M7: 197,6 | N7: 183 | O7: 35,9 | P7: 2,41 | Q7: 55,8 | R7: 2,73 | S7: 11,08 | T7: 4,95 | U7: 17,48 | V7: 10206 | W7: 0,69 | X7: W 150 x 24,0 | Y7: 4.951456311
A8: W 150 x 29,8 (H) | B8: 29,8 | C8: 157 | D8: 153 | E8: 6,6 | F8: 9,3 | G8: 138 | H8: 118 | I8: 38,5 | J8: 1739 | K8: 221,5 | L8: 6,72 | M8: 247,5 | N8: 556 | O8: 72,6 | P8: 3,8 | Q8: 110,8 | R8: 4,18 | S8: 10,95 | T8: 8,23 | U8: 17,94 | V8: 30277 | W8: 0,9 | X8: W 150 x 29,8 (H) | Y8: 8.225806452
A9: W 150 x 37,1 (H) | B9: 37,1 | C9: 162 | D9: 154 | E9: 8,1 | F9: 11,6 | G9: 139 | H9: 119 | I9: 47,8 | J9: 2244 | K9: 277 | L9: 6,85 | M9: 313,5 | N9: 707 | O9: 91,8 | P9: 3,84 | Q9: 140,4 | R9: 4,22 | S9: 20,58 | T9: 6,64 | U9: 14,67 | V9: 39930 | W9: 0,91 | X9: W 150 x 37,1 (H) | Y9: 6.637931034
A10: W 200 x 15,0 | B10: 15 | C10: 200 | D10: 100 | E10: 4,3 | F10: 5,2 | G10: 190 | H10: 170 | I10: 19,4 | J10: 1305 | K10: 130,5 | L10: 8,2 | M10: 147,9 | N10: 87 | O10: 17,4 | P10: 2,12 | Q10: 27,3 | R10: 2,55 | S10: 2,05 | T10: 9,62 | U10: 39,44 | V10: 8222 | W10: 0,77 | X10: W 200 x 15,0 | Y10: 9.615384615
A11: W 200 x 19,3 | B11: 19,3 | C11: 203 | D11: 102 | E11: 5,8 | F11: 6,5 | G11: 190 | H11: 170 | I11: 25,1 | J11: 1686 | K11: 166,1 | L11: 8,19 | M11: 190,6 | N11: 116 | O11: 22,7 | P11: 2,14 | Q11: 35,9 | R11: 2,59 | S11: 4,02 | T11: 7,85 | U11: 29,31 | V11: 11098 | W11: 0,79 | X11: W 200 x 19,3 | Y11: 7.846153846
A12: W 200 x 22,5 | B12: 22,5 | C12: 206 | D12: 102 | E12: 6,2 | F12: 8 | G12: 190 | H12: 170 | I12: 29 | J12: 2029 | K12: 197 | L12: 8,37 | M12: 225,5 | N12: 142 | O12: 27,9 | P12: 2,22 | Q12: 43,9 | R12: 2,63 | S12: 6,18 | T12: 6,38 | U12: 27,42 | V12: 13868 | W12: 0,79 | X12: W 200 x 22,5 | Y12: 6.375
A13: W 200 x 26,6 | B13: 26,6 | C13: 207 | D13: 133 | E13: 5,8 | F13: 8,4 | G13: 190 | H13: 170 | I13: 34,2 | J13: 2611 | K13: 252,3 | L13: 8,73 | M13: 282,3 | N13: 330 | O13: 49,6 | P13: 3,1 | Q13: 76,3 | R13: 3,54 | S13: 7,65 | T13: 7,92 | U13: 29,34 | V13: 32477 | W13: 0,92 | X13: W 200 x 26,6 | Y13: 7.916666667
A14: W 200 x 31,3 | B14: 31,3 | C14: 210 | D14: 134 | E14: 6,4 | F14: 10,2 | G14: 190 | H14: 170 | I14: 40,3 | J14: 3168 | K14: 301,7 | L14: 8,86 | M14: 338,6 | N14: 410 | O14: 61,2 | P14: 3,19 | Q14: 94 | R14: 3,6 | S14: 12,59 | T14: 6,57 | U14: 26,5 | V14: 40822 | W14: 0,93 | X14: W 200 x 31,3 | Y14: 6.568627451
A15: W 200 x 35,9 (H) | B15: 35,9 | C15: 201 | D15: 165 | E15: 6,2 | F15: 10,2 | G15: 181 | H15: 161 | I15: 45,7 | J15: 3437 | K15: 342 | L15: 8,67 | M15: 379,2 | N15: 764 | O15: 92,6 | P15: 4,09 | Q15: 141 | R15: 4,5 | S15: 14,51 | T15: 8,09 | U15: 25,9 | V15: 69502 | W15: 1,03 | X15: W 200 x 35,9 (H) | Y15: 8.088235294
A16: W 200 x 41,7 (H) | B16: 41,7 | C16: 205 | D16: 166 | E16: 7,2 | F16: 11,8 | G16: 181 | H16: 157 | I16: 53,5 | J16: 4114 | K16: 401,4 | L16: 8,77 | M16: 448,6 | N16: 901 | O16: 108,5 | P16: 4,1 | Q16: 165,7 | R16: 4,53 | S16: 23,19 | T16: 7,03 | U16: 21,86 | V16: 83948 | W16: 1,04 | X16: W 200 x 41,7 (H) | Y16: 7.033898305
A17: W 200 x 46,1 (H) | B17: 46,1 | C17: 203 | D17: 203 | E17: 7,2 | F17: 11 | G17: 181 | H17: 161 | I17: 58,6 | J17: 4543 | K17: 447,6 | L17: 8,81 | M17: 495,3 | N17: 1535 | O17: 151,2 | P17: 5,12 | Q17: 229,5 | R17: 5,58 | S17: 22,01 | T17: 9,23 | U17: 22,36 | V17: 141342 | W17: 1,19 | X17: W 200 x 46,1 (H) | Y17: 9.227272727
A18: W 200 x 52,0 (H) | B18: 52 | C18: 206 | D18: 204 | E18: 7,9 | F18: 12,6 | G18: 181 | H18: 157 | I18: 66,9 | J18: 5298 | K18: 514,4 | L18: 8,9 | M18: 572,5 | N18: 1784 | O18: 174,9 | P18: 5,16 | Q18: 265,8 | R18: 5,61 | S18: 33,34 | T18: 8,1 | U18: 19,85 | V18: 166710 | W18: 1,19 | X18: W 200 x 52,0 (H) | Y18: 8.095238095
A19: HP 200 x 53,0 (H) | B19: 53 | C19: 204 | D19: 207 | E19: 11,3 | F19: 11,3 | G19: 181 | H19: 161 | I19: 68,1 | J19: 4977 | K19: 488 | L19: 8,55 | M19: 551,3 | N19: 1673 | O19: 161,7 | P19: 4,96 | Q19: 248,6 | R19: 5,57 | S19: 31,93 | T19: 9,16 | U19: 14,28 | V19: 155075 | W19: 1,2 | X19: HP 200 x 53,0 (H) | Y19: 9.159292035
A20: W 200 x 59,0 (H) | B20: 59 | C20: 210 | D20: 205 | E20: 9,1 | F20: 14,2 | G20: 182 | H20: 158 | I20: 76 | J20: 6140 | K20: 584,8 | L20: 8,99 | M20: 655,9 | N20: 2041 | O20: 199,1 | P20: 5,18 | Q20: 303 | R20: 5,64 | S20: 47,69 | T20: 7,22 | U20: 17,32 | V20: 195418 | W20: 1,2 | X20: W 200 x 59,0 (H) | Y20: 7.218309859
A21: W 200 x 71,0 (H) | B21: 71 | C21: 216 | D21: 206 | E21: 10,2 | F21: 17,4 | G21: 181 | H21: 161 | I21: 91 | J21: 7660 | K21: 709,2 | L21: 9,17 | M21: 803,2 | N21: 2537 | O21: 246,3 | P21: 5,28 | Q21: 374,5 | R21: 5,7 | S21: 81,66 | T21: 5,92 | U21: 15,8 | V21: 249976 | W21: 1,22 | X21: W 200 x 71,0 (H) | Y21: 5.91954023
A22: W 200 x 86,0 (H) | B22: 86 | C22: 222 | D22: 209 | E22: 13 | F22: 20,6 | G22: 181 | H22: 157 | I22: 110,9 | J22: 9498 | K22: 855,7 | L22: 9,26 | M22: 984,2 | N22: 3139 | O22: 300,4 | P22: 5,32 | Q22: 458,7 | R22: 5,77 | S22: 142,19 | T22: 5,07 | U22: 12,06 | V22: 317844 | W22: 1,23 | X22: W 200 x 86,0 (H) | Y22: 5.072815534
A23: W 250 x 17,9 | B23: 17,9 | C23: 251 | D23: 101 | E23: 4,8 | F23: 5,3 | G23: 240 | H23: 220 | I23: 23,1 | J23: 2291 | K23: 182,6 | L23: 9,96 | M23: 211 | N23: 91 | O23: 18,1 | P23: 1,99 | Q23: 28,8 | R23: 2,48 | S23: 2,54 | T23: 9,53 | U23: 45,92 | V23: 13735 | W23: 0,88 | X23: W 250 x 17,9 | Y23: 9.528301887
A24: W 250 x 22,3 | B24: 22,3 | C24: 254 | D24: 102 | E24: 5,8 | F24: 6,9 | G24: 240 | H24: 220 | I24: 28,9 | J24: 2939 | K24: 231,3 | L24: 10,09 | M24: 267,7 | N24: 123 | O24: 24,1 | P24: 2,06 | Q24: 38,4 | R24: 2,54 | S24: 4,77 | T24: 7,39 | U24: 37,97 | V24: 18629 | W24: 0,89 | X24: W 250 x 22,3 | Y24: 7.391304348
A25: W 250 x 25,3 | B25: 25,3 | C25: 257 | D25: 102 | E25: 6,1 | F25: 8,4 | G25: 240 | H25: 220 | I25: 32,6 | J25: 3473 | K25: 270,2 | L25: 10,31 | M25: 311,1 | N25: 149 | O25: 29,3 | P25: 2,14 | Q25: 46,4 | R25: 2,58 | S25: 7,06 | T25: 6,07 | U25: 36,1 | V25: 22955 | W25: 0,89 | X25: W 250 x 25,3 | Y25: 6.071428571
A26: W 250 x 28,4 | B26: 28,4 | C26: 260 | D26: 102 | E26: 6,4 | F26: 10 | G26: 240 | H26: 220 | I26: 36,6 | J26: 4046 | K26: 311,2 | L26: 10,51 | M26: 357,3 | N26: 178 | O26: 34,8 | P26: 2,2 | Q26: 54,9 | R26: 2,62 | S26: 10,34 | T26: 5,1 | U26: 34,38 | V26: 27636 | W26: 0,9 | X26: W 250 x 28,4 | Y26: 5.1
A27: W 250 x 32,7 | B27: 32,7 | C27: 258 | D27: 146 | E27: 6,1 | F27: 9,1 | G27: 240 | H27: 220 | I27: 42,1 | J27: 4937 | K27: 382,7 | L27: 10,83 | M27: 428,5 | N27: 473 | O27: 64,8 | P27: 3,35 | Q27: 99,7 | R27: 3,86 | S27: 10,44 | T27: 8,02 | U27: 36,03 | V27: 73104 | W27: 1,07 | X27: W 250 x 32,7 | Y27: 8.021978022
A28: W 250 x 38,5 | B28: 38,5 | C28: 262 | D28: 147 | E28: 6,6 | F28: 11,2 | G28: 240 | H28: 220 | I28: 49,6 | J28: 6057 | K28: 462,4 | L28: 11,05 | M28: 517,8 | N28: 594 | O28: 80,8 | P28: 3,46 | Q28: 124,1 | R28: 3,93 | S28: 17,63 | T28: 6,56 | U28: 33,27 | V28: 93242 | W28: 1,08 | X28: W 250 x 38,5 | Y28: 6.5625
A29: W 250 x 44,8 | B29: 44,8 | C29: 266 | D29: 148 | E29: 7,6 | F29: 13 | G29: 240 | H29: 220 | I29: 57,6 | J29: 7158 | K29: 538,2 | L29: 11,15 | M29: 606,3 | N29: 704 | O29: 95,1 | P29: 3,5 | Q29: 146,4 | R29: 3,96 | S29: 27,14 | T29: 5,69 | U29: 28,95 | V29: 112398 | W29: 1,09 | X29: W 250 x 44,8 | Y29: 5.692307692
A30: HP 250 x 62,0 (H) | B30: 62 | C30: 246 | D30: 256 | E30: 10,5 | F30: 10,7 | G30: 225 | H30: 201 | I30: 79,6 | J30: 8728 | K30: 709,6 | L30: 10,47 | M30: 790,5 | N30: 2995 | O30: 234 | P30: 6,13 | Q30: 357,8 | R30: 6,89 | S30: 33,46 | T30: 11,96 | U30: 19,1 | V30: 414130 | W30: 1,47 | X30: HP 250 x 62,0 (H) | Y30: 11.96261682
A31: W 250 x 73,0 (H) | B31: 73 | C31: 253 | D31: 254 | E31: 8,6 | F31: 14,2 | G31: 225 | H31: 201 | I31: 92,7 | J31: 11257 | K31: 889,9 | L31: 11,02 | M31: 983,3 | N31: 3880 | O31: 305,5 | P31: 6,47 | Q31: 463,1 | R31: 7,01 | S31: 56,94 | T31: 8,94 | U31: 23,33 | V31: 552900 | W31: 1,48 | X31: W 250 x 73,0 (H) | Y31: 8.943661972
A32: W 250 x 80,0 (H) | B32: 80 | C32: 256 | D32: 255 | E32: 9,4 | F32: 15,6 | G32: 225 | H32: 201 | I32: 101,9 | J32: 12550 | K32: 980,5 | L32: 11,1 | M32: 1088,7 | N32: 4313 | O32: 338,3 | P32: 6,51 | Q32: 513,1 | R32: 7,04 | S32: 75,02 | T32: 8,17 | U32: 21,36 | V32: 622878 | W32: 1,49 | X32: W 250 x 80,0 (H) | Y32: 8.173076923
A33: HP 250 x 85,0 (H) | B33: 85 | C33: 254 | D33: 260 | E33: 14,4 | F33: 14,4 | G33: 225 | H33: 201 | I33: 108,5 | J33: 12280 | K33: 966,9 | L33: 10,64 | M33: 1093,2 | N33: 4225 | O33: 325 | P33: 6,24 | Q33: 499,6 | R33: 7 | S33: 82,07 | T33: 9,03 | U33: 13,97 | V33: 605403 | W33: 1,5 | X33: HP 250 x 85,0 (H) | Y33: 9.027777778
A34: W 250 x 89,0 (H) | B34: 89 | C34: 260 | D34: 256 | E34: 10,7 | F34: 17,3 | G34: 225 | H34: 201 | I34: 113,9 | J34: 14237 | K34: 1095,1 | L34: 11,18 | M34: 1224,4 | N34: 4841 | O34: 378,2 | P34: 6,52 | Q34: 574,3 | R34: 7,06 | S34: 102,81 | T34: 7,4 | U34: 18,82 | V34: 712351 | W34: 1,5 | X34: W 250 x 89,0 (H) | Y34: 7.398843931
A35: W 250 x 101,0 (H) | B35: 101 | C35: 264 | D35: 257 | E35: 11,9 | F35: 19,6 | G35: 225 | H35: 201 | I35: 128,7 | J35: 16352 | K35: 1238,8 | L35: 11,27 | M35: 1395 | N35: 5549 | O35: 431,8 | P35: 6,57 | Q35: 656,3 | R35: 7,1 | S35: 147,7 | T35: 6,56 | U35: 16,87 | V35: 828031 | W35: 1,51 | X35: W 250 x 101,0 (H) | Y35: 6.556122449
A36: W 250 x 115,0 (H) | B36: 115 | C36: 269 | D36: 259 | E36: 13,5 | F36: 22,1 | G36: 225 | H36: 201 | I36: 146,1 | J36: 18920 | K36: 1406,7 | L36: 11,38 | M36: 1597,4 | N36: 6405 | O36: 494,6 | P36: 6,62 | Q36: 752,7 | R36: 7,16 | S36: 212 | T36: 5,86 | U36: 14,87 | V36: 975265 | W36: 1,53 | X36: W 250 x 115,0 (H) | Y36: 5.859728507
A37: W 310 x 21,0 | B37: 21 | C37: 303 | D37: 101 | E37: 5,1 | F37: 5,7 | G37: 292 | H37: 272 | I37: 27,2 | J37: 3776 | K37: 249,2 | L37: 11,77 | M37: 291,9 | N37: 98 | O37: 19,5 | P37: 1,9 | Q37: 31,4 | R37: 2,42 | S37: 3,27 | T37: 8,86 | U37: 53,25 | V37: 21628 | W37: 0,98 | X37: W 310 x 21,0 | Y37: 8.859649123
A38: W 310 x 23,8 | B38: 23,8 | C38: 305 | D38: 101 | E38: 5,6 | F38: 6,7 | G38: 292 | H38: 272 | I38: 30,7 | J38: 4346 | K38: 285 | L38: 11,89 | M38: 333,2 | N38: 116 | O38: 22,9 | P38: 1,94 | Q38: 36,9 | R38: 2,45 | S38: 4,65 | T38: 7,54 | U38: 48,5 | V38: 25594 | W38: 0,99 | X38: W 310 x 23,8 | Y38: 7.537313433
A39: W 310 x 28,3 | B39: 28,3 | C39: 309 | D39: 102 | E39: 6 | F39: 8,9 | G39: 291 | H39: 271 | I39: 36,5 | J39: 5500 | K39: 356 | L39: 12,28 | M39: 412 | N39: 158 | O39: 31 | P39: 2,08 | Q39: 49,4 | R39: 2,55 | S39: 8,14 | T39: 5,73 | U39: 45,2 | V39: 35441 | W39: 1 | X39: W 310 x 28,3 | Y39: 5.730337079
A40: W 310 x 32,7 | B40: 32,7 | C40: 313 | D40: 102 | E40: 6,6 | F40: 10,8 | G40: 291 | H40: 271 | I40: 42,1 | J40: 6570 | K40: 419,8 | L40: 12,49 | M40: 485,3 | N40: 192 | O40: 37,6 | P40: 2,13 | Q40: 59,8 | R40: 2,58 | S40: 12,91 | T40: 4,72 | U40: 41,12 | V40: 43612 | W40: 1 | X40: W 310 x 32,7 | Y40: 4.722222222
A41: W 310 x 38,7 | B41: 38,7 | C41: 310 | D41: 165 | E41: 5,8 | F41: 9,7 | G41: 291 | H41: 271 | I41: 49,7 | J41: 8581 | K41: 553,6 | L41: 13,14 | M41: 615,4 | N41: 727 | O41: 88,1 | P41: 3,82 | Q41: 134,9 | R41: 4,38 | S41: 13,2 | T41: 8,51 | U41: 46,66 | V41: 163728 | W41: 1,25 | X41: W 310 x 38,7 | Y41: 8.505154639
A42: W 310 x 44,5 | B42: 44,5 | C42: 313 | D42: 166 | E42: 6,6 | F42: 11,2 | G42: 291 | H42: 271 | I42: 57,2 | J42: 9997 | K42: 638,8 | L42: 13,22 | M42: 712,8 | N42: 855 | O42: 103 | P42: 3,87 | Q42: 158 | R42: 4,41 | S42: 19,9 | T42: 7,41 | U42: 41 | V42: 194433 | W42: 1,26 | X42: W 310 x 44,5 | Y42: 7.410714286
A43: W 310 x 52,0 | B43: 52 | C43: 317 | D43: 167 | E43: 7,6 | F43: 13,2 | G43: 291 | H43: 271 | I43: 67 | J43: 11909 | K43: 751,4 | L43: 13,33 | M43: 842,5 | N43: 1026 | O43: 122,9 | P43: 3,91 | Q43: 188,8 | R43: 4,45 | S43: 31,81 | T43: 6,33 | U43: 35,61 | V43: 236422 | W43: 1,27 | X43: W 310 x 52,0 | Y43: 6.325757576
A44: HP 310 x 79,0 (H) | B44: 79 | C44: 299 | D44: 306 | E44: 11 | F44: 11 | G44: 277 | H44: 245 | I44: 100 | J44: 16316 | K44: 1091,3 | L44: 12,77 | M44: 1210,1 | N44: 5258 | O44: 343,7 | P44: 7,25 | Q44: 525,4 | R44: 8,2 | S44: 46,72 | T44: 13,91 | U44: 22,27 | V44: 1089258 | W44: 1,77 | X44: HP 310 x 79,0 (H) | Y44: 13.90909091
A45: HP 310 x 93,0 (H) | B45: 93 | C45: 303 | D45: 308 | E45: 13,1 | F45: 13,1 | G45: 277 | H45: 245 | I45: 119,2 | J45: 19682 | K45: 1299,1 | L45: 12,85 | M45: 1450,3 | N45: 6387 | O45: 414,7 | P45: 7,32 | Q45: 635,5 | R45: 8,26 | S45: 77,33 | T45: 11,76 | U45: 18,69 | V45: 1340320 | W45: 1,78 | X45: HP 310 x 93,0 (H) | Y45: 11.75572519
A46: W 310 x 97,0 (H) | B46: 97 | C46: 308 | D46: 305 | E46: 9,9 | F46: 15,4 | G46: 277 | H46: 245 | I46: 123,6 | J46: 22284 | K46: 1447 | L46: 13,43 | M46: 1594,2 | N46: 7286 | O46: 477,8 | P46: 7,68 | Q46: 725 | R46: 8,38 | S46: 92,12 | T46: 9,9 | U46: 24,77 | V46: 1558682 | W46: 1,79 | X46: W 310 x 97,0 (H) | Y46: 9.902597403
A47: W 310 x 107,0 (H) | B47: 107 | C47: 311 | D47: 306 | E47: 10,9 | F47: 17 | G47: 277 | H47: 245 | I47: 136,4 | J47: 24839 | K47: 1597,3 | L47: 13,49 | M47: 1768,2 | N47: 8123 | O47: 530,9 | P47: 7,72 | Q47: 806,1 | R47: 8,41 | S47: 122,68 | T47: 9 | U47: 22,48 | V47: 1754271 | W47: 1,8 | X47: W 310 x 107,0 (H) | Y47: 9
A48: HP310 x 110,0 (H) | B48: 110 | C48: 308 | D48: 310 | E48: 15,4 | F48: 15,5 | G48: 277 | H48: 245 | I48: 141 | J48: 23703 | K48: 1539,1 | L48: 12,97 | M48: 1730,6 | N48: 7707 | O48: 497,3 | P48: 7,39 | Q48: 763,7 | R48: 8,33 | S48: 125,66 | T48: 10 | U48: 15,91 | V48: 1646104 | W48: 1,8 | X48: HP310x110,0 (H) | Y48: 10
A49: W 310 x 117,0 (H) | B49: 117 | C49: 314 | D49: 307 | E49: 11,9 | F49: 18,7 | G49: 277 | H49: 245 | I49: 149,9 | J49: 27563 | K49: 1755,6 | L49: 13,56 | M49: 1952,6 | N49: 9024 | O49: 587,9 | P49: 7,76 | Q49: 893,1 | R49: 8,44 | S49: 161,61 | T49: 8,21 | U49: 20,55 | V49: 1965950 | W49: 1,8 | X49: W 310 x 117,0 (H) | Y49: 8.20855615
A50: HP310 x 125,0 (H) | B50: 125 | C50: 312 | D50: 312 | E50: 17,4 | F50: 17,4 | G50: 277 | H50: 245 | I50: 159 | J50: 27076 | K50: 1735,6 | L50: 13,05 | M50: 1963,3 | N50: 8823 | O50: 565,6 | P50: 7,45 | Q50: 870,6 | R50: 8,38 | S50: 177,98 | T50: 8,97 | U50: 14,09 | V50: 1911029 | W50: 1,81 | X50: HP310 x 125,0 (H) | Y50: 8.965517241
A51: W 360 x 32,9 | B51: 32,9 | C51: 349 | D51: 127 | E51: 5,8 | F51: 8,5 | G51: 332 | H51: 308 | I51: 42,1 | J51: 8358 | K51: 479 | L51: 14,09 | M51: 547,6 | N51: 291 | O51: 45,9 | P51: 2,63 | Q51: 72 | R51: 3,2 | S51: 9,15 | T51: 7,47 | U51: 53,1 | V51: 84111 | W51: 1,17 | X51: W 360 x 32,9 | Y51: 7.470588235
A52: W 360 x 39,0 | B52: 39 | C52: 353 | D52: 128 | E52: 6,5 | F52: 10,7 | G52: 332 | H52: 308 | I52: 50,2 | J52: 10331 | K52: 585,3 | L52: 14,35 | M52: 667,7 | N52: 375 | O52: 58,6 | P52: 2,73 | Q52: 91,9 | R52: 3,27 | S52: 15,83 | T52: 5,98 | U52: 47,32 | V52: 109551 | W52: 1,18 | X52: W 360 x 39,0 | Y52: 5.981308411
A53: W 360 x 44,0 | B53: 44 | C53: 352 | D53: 171 | E53: 6,9 | F53: 9,8 | G53: 332 | H53: 308 | I53: 57,7 | J53: 12258 | K53: 696,5 | L53: 14,58 | M53: 784,3 | N53: 818 | O53: 95,7 | P53: 3,77 | Q53: 148 | R53: 4,43 | S53: 16,7 | T53: 8,72 | U53: 44,7 | V53: 239091 | W53: 1,35 | X53: W 360 x 44,0 | Y53: 8.724489796
A54: W 360 x 51,0 | B54: 51 | C54: 355 | D54: 171 | E54: 7,2 | F54: 11,6 | G54: 332 | H54: 308 | I54: 64,8 | J54: 14222 | K54: 801,2 | L54: 14,81 | M54: 899,5 | N54: 968 | O54: 113,3 | P54: 3,87 | Q54: 174,7 | R54: 4,49 | S54: 24,65 | T54: 7,37 | U54: 42,75 | V54: 284994 | W54: 1,36 | X54: W 360 x 51,0 | Y54: 7.370689655
A55: W 360 x 57,8 | B55: 57,8 | C55: 358 | D55: 172 | E55: 7,9 | F55: 13,1 | G55: 332 | H55: 308 | I55: 72,5 | J55: 16143 | K55: 901,8 | L55: 14,92 | M55: 1014,8 | N55: 1113 | O55: 129,4 | P55: 3,92 | Q55: 199,8 | R55: 4,53 | S55: 34,45 | T55: 6,56 | U55: 38,96 | V55: 330394 | W55: 1,37 | X55: W 360 x 57,8 | Y55: 6.564885496
A56: W 360 x 64,0 | B56: 64 | C56: 347 | D56: 203 | E56: 7,7 | F56: 13,5 | G56: 320 | H56: 288 | I56: 81,7 | J56: 17890 | K56: 1031,1 | L56: 14,8 | M56: 1145,5 | N56: 1885 | O56: 185,7 | P56: 4,8 | Q56: 284,5 | R56: 5,44 | S56: 44,57 | T56: 7,52 | U56: 37,4 | V56: 523362 | W56: 1,46 | X56: W 360 x 64,0 | Y56: 7.518518519
A57: W 360 x 72,0 | B57: 72 | C57: 350 | D57: 204 | E57: 8,6 | F57: 15,1 | G57: 320 | H57: 288 | I57: 91,3 | J57: 20169 | K57: 1152,5 | L57: 14,86 | M57: 1285,9 | N57: 2140 | O57: 209,8 | P57: 4,84 | Q57: 321,8 | R57: 5,47 | S57: 61,18 | T57: 6,75 | U57: 33,47 | V57: 599082 | W57: 1,47 | X57: W 360 x 72,0 | Y57: 6.754966887
A58: W 360 x 79,0 | B58: 79 | C58: 354 | D58: 205 | E58: 9,4 | F58: 16,8 | G58: 320 | H58: 288 | I58: 101,2 | J58: 22713 | K58: 1283,2 | L58: 14,98 | M58: 1437 | N58: 2416 | O58: 235,7 | P58: 4,89 | Q58: 361,9 | R58: 5,51 | S58: 82,41 | T58: 6,1 | U58: 30,68 | V58: 685701 | W58: 1,48 | X58: W 360 x 79,0 | Y58: 6.101190476
A59: W 360 x 91,0 (H) | B59: 91 | C59: 353 | D59: 254 | E59: 9,5 | F59: 16,4 | G59: 320 | H59: 288 | I59: 115,9 | J59: 26755 | K59: 1515,9 | L59: 15,19 | M59: 1680,1 | N59: 4483 | O59: 353 | P59: 6,22 | Q59: 538,1 | R59: 6,9 | S59: 92,61 | T59: 7,74 | U59: 30,34 | V59: 1268709 | W59: 1,68 | X59: W 360 x 91,0 (H) | Y59: 7.743902439
A60: W 360 x 101,0 (H) | B60: 101 | C60: 357 | D60: 255 | E60: 10,5 | F60: 18,3 | G60: 320 | H60: 286 | I60: 129,5 | J60: 30279 | K60: 1696,3 | L60: 15,29 | M60: 1888,9 | N60: 5063 | O60: 397,1 | P60: 6,25 | Q60: 606,1 | R60: 6,93 | S60: 128,47 | T60: 6,97 | U60: 27,28 | V60: 1450410 | W60: 1,68 | X60: W 360 x 101,0 (H) | Y60: 6.967213115
A61: W 360 x 110,0 (H) | B61: 110 | C61: 360 | D61: 256 | E61: 11,4 | F61: 19,9 | G61: 320 | H61: 288 | I61: 140,6 | J61: 33155 | K61: 1841,9 | L61: 15,36 | M61: 2059,3 | N61: 5570 | O61: 435,2 | P61: 6,29 | Q61: 664,5 | R61: 6,96 | S61: 161,93 | T61: 6,43 | U61: 25,28 | V61: 1609070 | W61: 1,69 | X61: W 360 x 110,0 (H) | Y61: 6.432160804
A62: W 360 x 122,0 (H) | B62: 122 | C62: 363 | D62: 257 | E62: 13 | F62: 21,7 | G62: 320 | H62: 288 | I62: 155,3 | J62: 36599 | K62: 2016,5 | L62: 15,35 | M62: 2269,8 | N62: 6147 | O62: 478,4 | P62: 6,29 | Q62: 732,4 | R62: 6,98 | S62: 212,7 | T62: 5,92 | U62: 22,12 | V62: 1787806 | W62: 1,7 | X62: W 360 x 122,0 (H) | Y62: 5.921658986
A63: W 410 x 38,8 | B63: 38,8 | C63: 399 | D63: 140 | E63: 6,4 | F63: 8,8 | G63: 381 | H63: 357 | I63: 50,3 | J63: 12777 | K63: 640,5 | L63: 15,94 | M63: 736,8 | N63: 404 | O63: 57,7 | P63: 2,83 | Q63: 90,9 | R63: 3,49 | S63: 11,69 | T63: 7,95 | U63: 55,84 | V63: 153190 | W63: 1,32 | X63: W 410 x 38,8 | Y63: 7.954545455
A64: W 410 x 46,1 | B64: 46,1 | C64: 403 | D64: 140 | E64: 7 | F64: 11,2 | G64: 381 | H64: 357 | I64: 59,2 | J64: 15690 | K64: 778,7 | L64: 16,27 | M64: 891,1 | N64: 514 | O64: 73,4 | P64: 2,95 | Q64: 115,2 | R64: 3,55 | S64: 20,06 | T64: 6,25 | U64: 50,94 | V64: 196571 | W64: 1,33 | X64: W 410 x 46,1 | Y64: 6.25
A65: W 410 x 53,0 | B65: 53 | C65: 403 | D65: 177 | E65: 7,5 | F65: 10,9 | G65: 381 | H65: 357 | I65: 68,4 | J65: 18734 | K65: 929,7 | L65: 16,55 | M65: 1052,2 | N65: 1009 | O65: 114 | P65: 3,84 | Q65: 176,9 | R65: 4,56 | S65: 23,38 | T65: 8,12 | U65: 47,63 | V65: 387194 | W65: 1,48 | X65: W 410 x 53,0 | Y65: 8.119266055
A66: W 410 x 60,0 | B66: 60 | C66: 407 | D66: 178 | E66: 7,7 | F66: 12,8 | G66: 381 | H66: 357 | I66: 76,2 | J66: 21707 | K66: 1066,7 | L66: 16,88 | M66: 1201,5 | N66: 1205 | O66: 135,4 | P66: 3,98 | Q66: 209,2 | R66: 4,65 | S66: 33,78 | T66: 6,95 | U66: 46,42 | V66: 467404 | W66: 1,49 | X66: W 410 x 60,0 | Y66: 6.953125
A67: W 410 x 67,0 | B67: 67 | C67: 410 | D67: 179 | E67: 8,8 | F67: 14,4 | G67: 381 | H67: 357 | I67: 86,3 | J67: 24678 | K67: 1203,8 | L67: 16,91 | M67: 1362,7 | N67: 1379 | O67: 154,1 | P67: 4 | Q67: 239 | R67: 4,67 | S67: 48,11 | T67: 6,22 | U67: 40,59 | V67: 538546 | W67: 1,5 | X67: W 410 x 67,0 | Y67: 6.215277778
A68: W 410 x 75,0 | B68: 75 | C68: 413 | D68: 180 | E68: 9,7 | F68: 16 | G68: 381 | H68: 357 | I68: 95,8 | J68: 27616 | K68: 1337,3 | L68: 16,98 | M68: 1518,6 | N68: 1559 | O68: 173,2 | P68: 4,03 | Q68: 269,1 | R68: 4,7 | S68: 65,21 | T68: 5,63 | U68: 36,8 | V68: 612784 | W68: 1,51 | X68: W 410 x 75,0 | Y68: 5.625
A69: W 410 x 85,0 | B69: 85 | C69: 417 | D69: 181 | E69: 10,9 | F69: 18,2 | G69: 381 | H69: 357 | I69: 108,6 | J69: 31658 | K69: 1518,4 | L69: 17,07 | M69: 1731,7 | N69: 1804 | O69: 199,3 | P69: 4,08 | Q69: 310,4 | R69: 4,74 | S69: 94,48 | T69: 4,97 | U69: 32,72 | V69: 715165 | W69: 1,52 | X69: W 410 x 85,0 | Y69: =D69/2/F69 -> 4.972527473
A70: W 460 x 52,0 | B70: 52 | C70: 450 | D70: 152 | E70: 7,6 | F70: 10,8 | G70: 428 | H70: 404 | I70: 66,6 | J70: 21370 | K70: 949,8 | L70: 17,91 | M70: 1095,9 | N70: 634 | O70: 83,5 | P70: 3,09 | Q70: 131,7 | R70: 3,79 | S70: 21,79 | T70: 7,04 | U70: 53,21 | V70: 304837 | W70: 1,47 | X70: W 460 x 52,0 | Y70: 7.037037037
A71: W 460 x 60,0 | B71: 60 | C71: 455 | D71: 153 | E71: 8 | F71: 13,3 | G71: 428 | H71: 404 | I71: 76,2 | J71: 25652 | K71: 1127,6 | L71: 18,35 | M71: 1292,1 | N71: 796 | O71: 104,1 | P71: 3,23 | Q71: 163,4 | R71: 3,89 | S71: 34,6 | T71: 5,75 | U71: 50,55 | V71: 387230 | W71: 1,49 | X71: W 460 x 60,0 | Y71: 5.751879699
A72: W 460 x 68,0 | B72: 68 | C72: 459 | D72: 154 | E72: 9,1 | F72: 15,4 | G72: 428 | H72: 404 | I72: 87,6 | J72: 29851 | K72: 1300,7 | L72: 18,46 | M72: 1495,4 | N72: 941 | O72: 122,2 | P72: 3,28 | Q72: 192,4 | R72: 3,93 | S72: 52,29 | T72: 5 | U72: 44,42 | V72: 461163 | W72: 1,5 | X72: W 460 x 68,0 | Y72: 5
A73: W 460 x 74,0 | B73: 74 | C73: 457 | D73: 190 | E73: 9 | F73: 14,5 | G73: 428 | H73: 404 | I73: 94,9 | J73: 33415 | K73: 1462,4 | L73: 18,77 | M73: 1657,4 | N73: 1661 | O73: 174,8 | P73: 4,18 | Q73: 271,3 | R73: 4,93 | S73: 52,97 | T73: 6,55 | U73: 44,89 | V73: 811417 | W73: 1,64 | X73: W 460 x 74,0 | Y73: 6.551724138
A74: W 460 x 82,0 | B74: 82 | C74: 460 | D74: 191 | E74: 9,9 | F74: 16 | G74: 428 | H74: 404 | I74: 104,7 | J74: 37157 | K74: 1615,5 | L74: 18,84 | M74: 1836,4 | N74: 1862 | O74: 195 | P74: 4,22 | Q74: 303,3 | R74: 4,96 | S74: 70,62 | T74: 5,97 | U74: 40,81 | V74: 915745 | W74: 1,64 | X74: W 460 x 82,0 | Y74: 5.96875
A75: W 460 x 89,0 | B75: 89 | C75: 463 | D75: 192 | E75: 10,5 | F75: 17,7 | G75: 428 | H75: 404 | I75: 114,1 | J75: 41105 | K75: 1775,6 | L75: 18,98 | M75: 2019,4 | N75: 2093 | O75: 218 | P75: 4,28 | Q75: 339 | R75: 5,01 | S75: 92,49 | T75: 5,42 | U75: 38,44 | V75: 1035073 | W75: 1,65 | X75: W 460 x 89,0 | Y75: 5.423728814
A76: W 460 x 97,0 | B76: 97 | C76: 466 | D76: 193 | E76: 11,4 | F76: 19 | G76: 428 | H76: 404 | I76: 123,4 | J76: 44658 | K76: 1916,7 | L76: 19,03 | M76: 2187,4 | N76: 2283 | O76: 236,6 | P76: 4,3 | Q76: 368,8 | R76: 5,03 | S76: 115,05 | T76: 5,08 | U76: 35,44 | V76: 1137180 | W76: 1,66 | X76: W 460 x 97,0 | Y76: 5.078947368
A77: W 460 x 106,0 | B77: 106 | C77: 469 | D77: 194 | E77: 12,6 | F77: 20,6 | G77: 428 | H77: 404 | I77: 135,1 | J77: 48978 | K77: 2088,6 | L77: 19,04 | M77: 2394,6 | N77: 2515 | O77: 259,3 | P77: 4,32 | Q77: 405,7 | R77: 5,05 | S77: 148,19 | T77: 4,71 | U77: 32,05 | V77: 1260063 | W77: 1,67 | X77: W 460 x 106,0 | Y77: 4.708737864
A78: W 530 x 66,0 | B78: 66 | C78: 525 | D78: 165 | E78: 8,9 | F78: 11,4 | G78: 502 | H78: 478 | I78: 83,6 | J78: 34971 | K78: 1332,2 | L78: 20,46 | M78: 1558 | N78: 857 | O78: 103,9 | P78: 3,2 | Q78: 166 | R78: 4,02 | S78: 31,52 | T78: 7,24 | U78: 53,73 | V78: 562854 | W78: 1,67 | X78: W 530 x 66,0 | Y78: 7.236842105
A79: W 530 x 72,0 | B79: 72 | C79: 524 | D79: 207 | E79: 9 | F79: 10,9 | G79: 502 | H79: 478 | I79: 91,6 | J79: 39969 | K79: 1525,5 | L79: 20,89 | M79: 1755,9 | N79: 1615 | O79: 156 | P79: 4,2 | Q79: 244,6 | R79: 5,16 | S79: 33,41 | T79: 9,5 | U79: 53,13 | V79: 1060548 | W79: 1,84 | X79: W 530 x 72,0 | Y79: 9.495412844
A80: W 530 x 74,0 | B80: 74 | C80: 529 | D80: 166 | E80: 9,7 | F80: 13,6 | G80: 502 | H80: 478 | I80: 95,1 | J80: 40969 | K80: 1548,9 | L80: 20,76 | M80: 1804,9 | N80: 1041 | O80: 125,5 | P80: 3,31 | Q80: 200,1 | R80: 4,1 | S80: 47,39 | T80: 6,1 | U80: 49,26 | V80: 688558 | W80: 1,68 | X80: W 530 x 74,0 | Y80: 6.102941176
A81: W 530 x 82,0 | B81: 82 | C81: 528 | D81: 209 | E81: 9,5 | F81: 13,3 | G81: 501 | H81: 477 | I81: 104,5 | J81: 47569 | K81: 1801,8 | L81: 21,34 | M81: 2058,5 | N81: 2028 | O81: 194,1 | P81: 4,41 | Q81: 302,7 | R81: 5,31 | S81: 51,23 | T81: 7,86 | U81: 50,25 | V81: 1340255 | W81: 1,85 | X81: W 530 x 82,0 | Y81: 7.857142857
A82: W 530 x 85,0 | B82: 85 | C82: 535 | D82: 166 | E82: 10,3 | F82: 16,5 | G82: 502 | H82: 478 | I82: 107,7 | J82: 48453 | K82: 1811,3 | L82: 21,21 | M82: 2099,8 | N82: 1263 | O82: 152,2 | P82: 3,42 | Q82: 241,6 | R82: 4,17 | S82: 72,93 | T82: 5,03 | U82: 46,41 | V82: 845463 | W82: 1,69 | X82: W 530 x 85,0 | Y82: 5.03030303
A83: W 530 x 92,0 | B83: 92 | C83: 533 | D83: 209 | E83: 10,2 | F83: 15,6 | G83: 502 | H83: 478 | I83: 117,6 | J83: 55157 | K83: 2069,7 | L83: 21,65 | M83: 2359,8 | N83: 2379 | O83: 227,6 | P83: 4,5 | Q83: 354,7 | R83: 5,36 | S83: 75,5 | T83: 6,7 | U83: 46,84 | V83: 1588565 | W83: 1,86 | X83: W 530 x 92,0 | Y83: 6.698717949
A84: W 530 x 101,0 | B84: 101 | C84: 537 | D84: 210 | E84: 10,9 | F84: 17,4 | G84: 502 | H84: 470 | I84: 130 | J84: 62198 | K84: 2316,5 | L84: 21,87 | M84: 2640,4 | N84: 2693 | O84: 256,5 | P84: 4,55 | Q84: 400,6 | R84: 5,4 | S84: 106,04 | T84: 6,03 | U84: 43,14 | V84: 1812734 | W84: 1,86 | X84: W 530 x 101,0 | Y84: 6.034482759
A85: W 530 x 109,0 | B85: 109 | C85: 539 | D85: 211 | E85: 11,6 | F85: 18,8 | G85: 501 | H85: 469 | I85: 139,7 | J85: 67226 | K85: 2494,5 | L85: 21,94 | M85: 2847 | N85: 2952 | O85: 279,8 | P85: 4,6 | Q85: 437,4 | R85: 5,44 | S85: 131,38 | T85: 5,61 | U85: 40,47 | V85: 1991291 | W85: 1,87 | X85: W 530 x 109,0 | Y85: 5.611702128
A86: W 610 x 101,0 | B86: 101 | C86: 603 | D86: 228 | E86: 10,5 | F86: 14,9 | G86: 573 | H86: 541 | I86: 130,3 | J86: 77003 | K86: 2554 | L86: 24,31 | M86: 2922,7 | N86: 2951 | O86: 258,8 | P86: 4,76 | Q86: 405 | R86: 5,76 | S86: 81,68 | T86: 7,65 | U86: 51,54 | V86: 2544966 | W86: 2,07 | X86: W 610 x 101,0 | Y86: 7.651006711
A87: W 610 x 113,0 | B87: 113 | C87: 608 | D87: 228 | E87: 11,2 | F87: 17,3 | G87: 573 | H87: 541 | I87: 145,3 | J87: 88196 | K87: 2901,2 | L87: 24,64 | M87: 3312,9 | N87: 3426 | O87: 300,5 | P87: 4,86 | Q87: 469,7 | R87: 5,82 | S87: 116,5 | T87: 6,59 | U87: 48,34 | V87: 2981078 | W87: 2,08 | X87: W 610 x 113,0 | Y87: 6.589595376
A88: W 610 x 125,0 | B88: 125 | C88: 612 | D88: 229 | E88: 11,9 | F88: 19,6 | G88: 573 | H88: 541 | I88: 160,1 | J88: 99184 | K88: 3241,3 | L88: 24,89 | M88: 3697,3 | N88: 3933 | O88: 343,5 | P88: 4,96 | Q88: 536,3 | R88: 5,89 | S88: 159,5 | T88: 5,84 | U88: 45,45 | V88: 3441766 | W88: 2,09 | X88: W 610 x 125,0 | Y88: 5.841836735
A89: W 610 x 140,0 | B89: 140 | C89: 617 | D89: 230 | E89: 13,1 | F89: 22,2 | G89: 573 | H89: 541 | I89: 179,3 | J89: 112619 | K89: 3650,5 | L89: 25,06 | M89: 4173,1 | N89: 4515 | O89: 392,6 | P89: 5,02 | Q89: 614 | R89: 5,94 | S89: 225,01 | T89: 5,18 | U89: 41,27 | V89: 3981687 | W89: 2,1 | X89: W 610 x 140,0 | Y89: 5.18018018
A90: W 610 x 155,0 | B90: 155 | C90: 611 | D90: 324 | E90: 12,7 | F90: 19 | G90: 573 | H90: 541 | I90: 198,1 | J90: 129583 | K90: 4241,7 | L90: 25,58 | M90: 4749,1 | N90: 10783 | O90: 665,6 | P90: 7,38 | Q90: 1022,6 | R90: 8,53 | S90: 200,77 | T90: 8,53 | U90: 42,6 | V90: 9436714 | W90: 2,47 | X90: W 610 x 155,0 | Y90: 8.526315789
A91: W 610 x 174,0 | B91: 174 | C91: 616 | D91: 325 | E91: 14 | F91: 21,6 | G91: 573 | H91: 541 | I91: 222,8 | J91: 147754 | K91: 4797,2 | L91: 25,75 | M91: 5383,3 | N91: 12374 | O91: 761,5 | P91: 7,45 | Q91: 1171,1 | R91: 8,58 | S91: 286,88 | T91: 7,52 | U91: 38,63 | V91: 10915665 | W91: 2,48 | X91: W 610 x 174,0 | Y91: 7.523148148
Y92: =MAX(Y4:Y91) -> 13.90909091

Sheet fy
A1: Propriedades Mecânicas | B1: Limite de Escoamento (MPa) | C1: Limite de Resistência (MPa) | D1: Alongamento após ruptura,% (lo=200mm)
A2: MR 250 | B2: 250 | C2: 400 | D2: 18
A3: ASTM A 572 Grau 50 | B3: 345 | C3: 450 | D3: 18
A4: AÇO COR 500 | B4: 370 | C4: 500

Sheet Soldagem
A1: Recomendações
A2: Soldagem (mm) | F2: Parafusos
A3: Aço | B3: Processo
B4: Eletrodo Revestido | C4: MIG/MAG | D4: Arco Submerso | E4: Eletrodo Tubular
A5: ASTM A 572 | B5: E 7018 | C5: ER 70 S6 | D5: F7AO EM 12K | E5: E70T-1 | F5: ASTM A 325
E6: E71T-1 | F6: TIPO 1
E7: E70T-4
A8: AÇO COR 500 (**) | B8: E 7018 W | C8: ER 8018 S-G | D8: F7AO EW | E8: E80T1 W | F8: ASTM A 325
B9: E 7018 G | E9: E71T8 Ni1 | F9: TIPO 3 GRAU A (*)
A11: (*) Porcas, parafusos e conexões em aço galvanizado sem pintura não devem ser utilizados na união de aços patináveis. Devido à grande diferença de potencial desenvolvida entre o revestimento de zinco e o aço da estrutura, podem originar corrosão galvânica. (**) Para soldagem do aço AÇO COR 500 através de múltiplos passes, pode-se utilizar eletrodos de composição química especial somente nos dois últimos filetes, que ficam, efetivamente, em contato com a atmosfera. Para passe simples (1 cordão), pode-se utilizar eletrodos convencionais, pois haverá diluição na poça de fusão.

Sheet Pintura
A1: Pintura
A2: Recomendação | B2: Atmosfera
B3: Rural | C3: Industrial | D3: Marítima
A4: Preparo da Superfície | B4: Jateamento abrasivo seco, até o padrão Sa 2 1/2 | D4: Jateamento abrasivo seco, até o padrão Sa 3
A5: Tinta de Fundo | B5: Primer acrílico, | C5: Primer epoxídico, | D5: Primer epoxídico rico em zinco, 1 demão, 75 µm
B6: 1 demão, 50 µm | C6: 1 demão, 75 µm
A7: Tinta Intermediária | B7: - | C7: - | D7: Esmalte epoxídico,
D8: 1 demão, 75 µm
A9: Tinta de Acabamento | B9: Esmalte acrílico WB, | C9: Esmalte epoxídico, | D9: Esmalte poliuretâno, alifático, 1 demão, 75 µm
B10: 2 demaõs, 40 µm/demão | C10: 2 demãos, 100 µm/demão
A11: Espessura Total Recomendada | B11: 130 µm | C11: 275 µm | D11: 275 µm
A12: (base seca)
A13: Expectativa de Durabilidade | B13: 5-9 anos | C13: 6-9 anos | D13: 7-11 anos
A14: Observações | B14: Boa resistência à calcinação | C14: Calcina | D14: Boa resistência à calcinação
